[Event "GrandPrix_30.05"]
[Site "Chess.com"]
[Date "2020.05.30"]
[Round "5"]
[White "Hrant_ChessMood"]
[Black "Martin_Petrov2000"]
[Result "1/2-1/2"]
[WhiteElo "2740"]
[BlackElo "2314"]
[TimeControl "600+2"]
[EndTime "10:25:43 PDT"]
[Termination "Game drawn by repetition"]

1. d4 {[%clk 0:10:01.9]} 1... Nf6 {[%clk 0:10:00]} 2. c4 {[%clk 0:09:57.1]} 2...
e6 {[%clk 0:10:01.1]} 3. Nf3 {[%clk 0:09:56.8]} 3... b6 {[%clk 0:10:01.7]} 4. g3
{[%clk 0:09:56.2]} 4... Ba6 {[%clk 0:10:02]} 5. Nbd2 {[%clk 0:09:53]} 5... Be7
{[%clk 0:09:56.3]} 6. Bg2 {[%clk 0:09:53.4]} 6... d5 {[%clk 0:09:53.8]} 7. O-O
{[%clk 0:09:47.8]} 7... O-O {[%clk 0:09:53.9]} 8. b3 {[%clk 0:09:41.3]} 8... c5
{[%clk 0:09:54.2]} 9. Bb2 {[%clk 0:09:39]} 9... Nc6 {[%clk 0:09:46.4]} 10. Rc1
{[%clk 0:09:19]} 10... Rc8 {[%clk 0:09:40.4]} 11. dxc5 {[%clk 0:09:00.5]} 11...
bxc5 {[%clk 0:09:39.4]} 12. cxd5 {[%clk 0:08:26.6]} 12... exd5 {[%clk
0:09:25.8]} 13. Re1 {[%clk 0:07:43.4]} 13... Re8 {[%clk 0:09:20.1]} 14. a3
{[%clk 0:07:09.9]} 14... Bf8 {[%clk 0:08:20.2]} 15. e3 {[%clk 0:07:10.6]} 15...
Ne4 {[%clk 0:07:52.4]} 16. Nxe4 {[%clk 0:06:50]} 16... dxe4 {[%clk 0:07:51.8]}
17. Nd2 {[%clk 0:06:17.3]} 17... Bd3 {[%clk 0:07:40.3]} 18. Qg4 {[%clk
0:05:27.6]} 18... Qd5 {[%clk 0:07:35]} 19. h4 {[%clk 0:04:06]} 19... f5 {[%clk
0:07:28.7]} 20. Qh5 {[%clk 0:03:55]} 20... Qf7 {[%clk 0:07:00.8]} 21. Qxf7+
{[%clk 0:03:50.4]} 21... Kxf7 {[%clk 0:07:02.7]} 22. Bc3 {[%clk 0:03:41]} 22...
Red8 {[%clk 0:06:42.3]} 23. Bf1 {[%clk 0:03:32.2]} 23... Rb8 {[%clk 0:06:30.5]}
24. f3 {[%clk 0:03:12.3]} 24... exf3 {[%clk 0:06:12.1]} 25. Kf2 {[%clk
0:02:35.1]} 25... c4 {[%clk 0:04:54.7]} 26. Nxc4 {[%clk 0:02:21.9]} 26... Rxb3
{[%clk 0:04:47.5]} 27. Bxd3 {[%clk 0:01:41.6]} 27... Rxd3 {[%clk 0:04:46]} 28.
Ne5+ {[%clk 0:01:42.8]} 28... Nxe5 {[%clk 0:04:44.1]} 29. Bxe5 {[%clk
0:01:44.7]} 29... Ke6 {[%clk 0:04:31.8]} 30. Bf4 {[%clk 0:01:41.1]} 30... Rdc3
{[%clk 0:04:07.4]} 31. Kxf3 {[%clk 0:01:36.8]} 31... Bxa3 {[%clk 0:04:05.1]} 32.
Rxc3 {[%clk 0:01:31.5]} 32... Rxc3 {[%clk 0:04:05.8]} 33. Rb1 {[%clk 0:01:33.4]}
33... Rd3 {[%clk 0:03:46.9]} 34. Rb7 {[%clk 0:01:24.8]} 34... Rd7 {[%clk
0:03:46.4]} 35. Rb5 {[%clk 0:01:26.5]} 35... Bd6 {[%clk 0:03:36.8]} 36. Ra5
{[%clk 0:01:27.3]} 36... Bxf4 {[%clk 0:03:26.2]} 37. Kxf4 {[%clk 0:01:20.3]}
37... g6 {[%clk 0:03:25]} 38. h5 {[%clk 0:01:20.1]} 38... Re7 {[%clk 0:03:18.8]}
39. Kg5 {[%clk 0:00:54.7]} 39... gxh5 {[%clk 0:03:07.6]} 40. Kf4 {[%clk
0:00:49]} 40... Rf7 {[%clk 0:03:04.6]} 41. Rb5 {[%clk 0:00:31.2]} 41... Kf6
{[%clk 0:02:37.4]} 42. Ra5 {[%clk 0:00:27.8]} 42... h6 {[%clk 0:02:31.4]} 43.
Ra6+ {[%clk 0:00:26.7]} 43... Kg7 {[%clk 0:02:32.3]} 44. Rc6 {[%clk 0:00:25.1]}
44... Rf6 {[%clk 0:02:23.9]} 45. Rc7+ {[%clk 0:00:25.7]} 45... Rf7 {[%clk
0:02:24.6]} 46. Rc6 {[%clk 0:00:27]} 46... Kh7 {[%clk 0:01:54.5]} 47. Ra6 {[%clk
0:00:26]} 47... Kg7 {[%clk 0:01:36.6]} 48. Rc6 {[%clk 0:00:26.1]} 1/2-1/2

[Event "GrandPrix_30.05"]
[Site "Chess.com"]
[Date "2020.05.30"]
[Round "5"]
[White "Msb2"]
[Black "Onischuk_V"]
[Result "1-0"]
[WhiteElo "2692"]
[BlackElo "2521"]
[TimeControl "600+2"]
[EndTime "10:25:47 PDT"]
[Termination "Msb2 won by resignation"]

1. d4 {[%clk 0:10:01.9]} 1... d6 {[%clk 0:09:45.8]} 2. Nf3 {[%clk 0:10:02.6]}
2... g6 {[%clk 0:09:45.6]} 3. c4 {[%clk 0:10:03.4]} 3... Bg7 {[%clk 0:09:47]} 4.
Nc3 {[%clk 0:10:04.7]} 4... Nf6 {[%clk 0:09:47.8]} 5. e4 {[%clk 0:10:05.6]} 5...
O-O {[%clk 0:09:48.6]} 6. Be2 {[%clk 0:10:07.2]} 6... Nbd7 {[%clk 0:09:46.7]} 7.
O-O {[%clk 0:10:07.4]} 7... e5 {[%clk 0:09:47.6]} 8. Be3 {[%clk 0:10:08.7]} 8...
c6 {[%clk 0:09:47.8]} 9. Qc2 {[%clk 0:10:05.7]} 9... Qe7 {[%clk 0:09:48.6]} 10.
Rad1 {[%clk 0:09:55.8]} 10... Re8 {[%clk 0:09:45.5]} 11. d5 {[%clk 0:09:46]}
11... c5 {[%clk 0:09:46.2]} 12. Ne1 {[%clk 0:09:43.7]} 12... Rf8 {[%clk
0:09:46.6]} 13. Nd3 {[%clk 0:09:42.7]} 13... Ne8 {[%clk 0:09:47.9]} 14. Qd2
{[%clk 0:09:20.7]} 14... Nb6 {[%clk 0:09:43.6]} 15. b3 {[%clk 0:09:14.7]} 15...
f5 {[%clk 0:09:39.2]} 16. exf5 {[%clk 0:09:16]} 16... gxf5 {[%clk 0:09:39.6]}
17. f4 {[%clk 0:09:17.3]} 17... e4 {[%clk 0:09:40.9]} 18. Ne1 {[%clk 0:09:17]}
18... Nf6 {[%clk 0:09:34.1]} 19. Nc2 {[%clk 0:09:16.3]} 19... h5 {[%clk
0:09:34.1]} 20. h3 {[%clk 0:09:10.4]} 20... Nbd7 {[%clk 0:09:30]} 21. Bf2 {[%clk
0:09:10.1]} 21... Rf7 {[%clk 0:09:23.6]} 22. Ne3 {[%clk 0:09:10.4]} 22... Nf8
{[%clk 0:09:24.7]} 23. Bh4 {[%clk 0:08:52.8]} 23... Ng6 {[%clk 0:09:25.6]} 24.
Bxf6 {[%clk 0:08:08.9]} 24... Bxf6 {[%clk 0:09:26]} 25. Bxh5 {[%clk 0:08:09.3]}
25... Rg7 {[%clk 0:09:27.2]} 26. Kh2 {[%clk 0:07:43.6]} 26... Bd7 {[%clk
0:09:20.6]} 27. Ne2 {[%clk 0:07:42.2]} 27... Kh8 {[%clk 0:08:50.3]} 28. Bxg6
{[%clk 0:07:27.9]} 28... Rxg6 {[%clk 0:08:50.8]} 29. g3 {[%clk 0:07:29.5]} 29...
Rag8 {[%clk 0:08:47.9]} 30. Rf2 {[%clk 0:07:06.7]} 30... Qh7 {[%clk 0:08:48.3]}
31. Rh1 {[%clk 0:07:05.2]} 31... Rh6 {[%clk 0:08:23.6]} 32. Kg1 {[%clk
0:06:43.2]} 32... b5 {[%clk 0:08:15.2]} 33. cxb5 {[%clk 0:05:49.3]} 33... Bxb5
{[%clk 0:08:15]} 34. Rg2 {[%clk 0:05:50.7]} 34... Bxe2 {[%clk 0:08:02.1]} 35.
Qxe2 {[%clk 0:05:49.6]} 35... Bd4 {[%clk 0:08:03.6]} 36. Rhh2 {[%clk 0:04:55.9]}
36... Rg7 {[%clk 0:04:50.1]} 37. g4 {[%clk 0:03:30.5]} 37... Kg8 {[%clk
0:04:08.7]} 38. Kh1 {[%clk 0:03:05.3]} 38... Rxh3 {[%clk 0:02:19.5]} 39. Nxf5
{[%clk 0:02:44.3]} 39... Rxh2+ {[%clk 0:02:17.2]} 40. Rxh2 {[%clk 0:02:46.2]}
40... Qxf5 {[%clk 0:02:18.1]} 41. Rh8+ {[%clk 0:02:42.8]} 41... Kxh8 {[%clk
0:02:19]} 42. gxf5 {[%clk 0:02:44.2]} 42... e3 {[%clk 0:02:19.7]} 43. f6 {[%clk
0:02:24.4]} 43... Rf7 {[%clk 0:01:53.8]} 44. Kg2 {[%clk 0:02:24.4]} 44... Rxf6
{[%clk 0:01:53.1]} 45. Qh5+ {[%clk 0:02:25.2]} 45... Kg7 {[%clk 0:01:52.5]} 46.
Kf3 {[%clk 0:02:26.7]} 46... Rg6 {[%clk 0:01:46]} 47. Qf5 {[%clk 0:02:17.6]}
47... Rg1 {[%clk 0:01:42.3]} 48. Qd7+ {[%clk 0:02:16.8]} 48... Kg8 {[%clk
0:01:42.3]} 49. Qxd6 {[%clk 0:02:01.5]} 49... Rf1+ {[%clk 0:01:41.9]} 50. Kg4
{[%clk 0:02:01.6]} 50... Rf2 {[%clk 0:01:40.5]} 51. Qe6+ {[%clk 0:02:00.5]}
51... Kg7 {[%clk 0:01:40.9]} 52. d6 {[%clk 0:01:38.9]} 52... e2 {[%clk
0:01:26.2]} 53. d7 {[%clk 0:01:29.6]} 53... Bf6 {[%clk 0:01:23.9]} 54. Qxf6+
{[%clk 0:01:25]} 54... Kxf6 {[%clk 0:01:24.7]} 55. d8=Q+ {[%clk 0:01:26.5]}
55... Ke6 {[%clk 0:01:26.1]} 56. Qd2 {[%clk 0:01:23.6]} 1-0

[Event "GrandPrix_30.05"]
[Site "Chess.com"]
[Date "2020.05.30"]
[Round "5"]
[White "ChessQueen"]
[Black "rasmussvane"]
[Result "1-0"]
[WhiteElo "2382"]
[BlackElo "2444"]
[TimeControl "600+2"]
[EndTime "10:25:51 PDT"]
[Termination "ChessQueen won by resignation"]

1. e4 {[%clk 0:10:01.9]} 1... c6 {[%clk 0:10:00.2]} 2. c4 {[%clk 0:10:02.5]}
2... d5 {[%clk 0:10:02.1]} 3. cxd5 {[%clk 0:10:03.4]} 3... cxd5 {[%clk 0:10:04]}
4. exd5 {[%clk 0:10:04.9]} 4... Nf6 {[%clk 0:10:05]} 5. Nc3 {[%clk 0:10:06]}
5... Nxd5 {[%clk 0:10:00.2]} 6. Nf3 {[%clk 0:10:06.7]} 6... Nc6 {[%clk
0:10:00.5]} 7. Bb5 {[%clk 0:10:07.1]} 7... g6 {[%clk 0:09:06.4]} 8. O-O {[%clk
0:09:24.5]} 8... Bg7 {[%clk 0:09:05.5]} 9. Bxc6+ {[%clk 0:09:25.2]} 9... bxc6
{[%clk 0:09:06]} 10. Qa4 {[%clk 0:09:26.8]} 10... Qd6 {[%clk 0:07:30.5]} 11. Ne4
{[%clk 0:08:32.3]} 11... Qc7 {[%clk 0:07:26.6]} 12. d4 {[%clk 0:08:27.9]} 12...
O-O {[%clk 0:07:26.4]} 13. Nc5 {[%clk 0:08:02.1]} 13... Rb8 {[%clk 0:07:07.9]}
14. a3 {[%clk 0:07:32.5]} 14... Rb5 {[%clk 0:06:52.9]} 15. Re1 {[%clk 0:07:10]}
15... Rd8 {[%clk 0:06:21.4]} 16. Qc4 {[%clk 0:06:36.4]} 16... a5 {[%clk
0:06:03.6]} 17. h3 {[%clk 0:06:24.3]} 17... Bf5 {[%clk 0:05:01.4]} 18. Ne5
{[%clk 0:06:18]} 18... h5 {[%clk 0:04:19.1]} 19. b3 {[%clk 0:05:55.4]} 19... Bf6
{[%clk 0:03:37]} 20. Bd2 {[%clk 0:05:48]} 20... Qc8 {[%clk 0:02:40.2]} 21. a4
{[%clk 0:05:44]} 21... Rb4 {[%clk 0:01:57.3]} 22. Bxb4 {[%clk 0:05:40.1]} 22...
axb4 {[%clk 0:01:58.8]} 23. a5 {[%clk 0:05:31.8]} 23... Bxh3 {[%clk 0:01:59.2]}
24. gxh3 {[%clk 0:05:23.9]} 24... Qxh3 {[%clk 0:02:00.2]} 25. Qd3 {[%clk
0:05:15.4]} 25... Qh4 {[%clk 0:01:48.9]} 26. Re4 {[%clk 0:04:30.3]} 26... Qg5+
{[%clk 0:01:46.5]} 27. Qg3 {[%clk 0:04:30.6]} 27... Qf5 {[%clk 0:01:47.9]} 28.
Rae1 {[%clk 0:04:02]} 28... Nc3 {[%clk 0:00:58.5]} 29. Rf4 {[%clk 0:03:48.4]}
29... Qc2 {[%clk 0:00:43.2]} 30. Nxc6 {[%clk 0:03:33]} 30... Rd5 {[%clk
0:00:26.3]} 31. Qd3 {[%clk 0:02:44.6]} 31... Qb2 {[%clk 0:00:11.8]} 32. Nxb4
{[%clk 0:02:36.4]} 32... Rxd4 {[%clk 0:00:12.2]} 33. Rxd4 {[%clk 0:02:34.8]}
33... Bxd4 {[%clk 0:00:14.1]} 34. Qc2 {[%clk 0:02:11.2]} 34... Qa3 {[%clk
0:00:13.4]} 35. Ncd3 {[%clk 0:01:19.7]} 35... Qxa5 {[%clk 0:00:11.7]} 36. Qd2
{[%clk 0:01:20.6]} 36... Nd5 {[%clk 0:00:04.4]} 37. Qa2 {[%clk 0:01:14.6]} 37...
Qc7 {[%clk 0:00:03]} 38. Qa8+ {[%clk 0:01:14.1]} 38... Kg7 {[%clk 0:00:03.7]}
39. Qxd5 {[%clk 0:01:15.3]} 39... Qg3+ {[%clk 0:00:03.8]} 40. Qg2 {[%clk
0:01:16.2]} 40... Qh3 {[%clk 0:00:05.4]} 1-0

[Event "GrandPrix_30.05"]
[Site "Chess.com"]
[Date "2020.05.30"]
[Round "5"]
[White "Nuvas"]
[Black "zuagroasta"]
[Result "1-0"]
[WhiteElo "2262"]
[BlackElo "2025"]
[TimeControl "600+2"]
[EndTime "10:25:53 PDT"]
[Termination "Nuvas won by resignation"]

1. d4 {[%clk 0:10:01.9]} 1... Nf6 {[%clk 0:09:59.8]} 2. c4 {[%clk 0:10:03.2]}
2... e6 {[%clk 0:09:59.9]} 3. Nc3 {[%clk 0:10:04.3]} 3... Bb4 {[%clk 0:10:00]}
4. g3 {[%clk 0:10:05.8]} 4... d5 {[%clk 0:09:27.5]} 5. Bg2 {[%clk 0:10:06.5]}
5... O-O {[%clk 0:09:27.1]} 6. Nf3 {[%clk 0:10:07.7]} 6... dxc4 {[%clk
0:09:22.3]} 7. O-O {[%clk 0:10:07.9]} 7... Nc6 {[%clk 0:09:14.8]} 8. Qa4 {[%clk
0:10:08.8]} 8... a5 {[%clk 0:09:13]} 9. Qb5 {[%clk 0:09:19.5]} 9... Bxc3 {[%clk
0:08:54.1]} 10. bxc3 {[%clk 0:09:20.6]} 10... Qd5 {[%clk 0:08:54.7]} 11. Qb1
{[%clk 0:09:21.8]} 11... Qf5 {[%clk 0:08:44.2]} 12. Ba3 {[%clk 0:06:39.1]} 12...
Re8 {[%clk 0:08:32]} 13. Nd2 {[%clk 0:06:37.2]} 13... Qxb1 {[%clk 0:08:18.5]}
14. Raxb1 {[%clk 0:06:38.1]} 14... Nd5 {[%clk 0:07:34.4]} 15. Rfc1 {[%clk
0:06:38.3]} 15... Nb6 {[%clk 0:07:34.1]} 16. e4 {[%clk 0:05:55.6]} 16... f5
{[%clk 0:05:51.9]} 17. Bf1 {[%clk 0:05:10.2]} 17... fxe4 {[%clk 0:05:16.6]} 18.
Nxc4 {[%clk 0:05:10.9]} 18... Nxc4 {[%clk 0:03:55.8]} 19. Bxc4 {[%clk
0:05:11.3]} 19... Ne7 {[%clk 0:03:55.5]} 20. Bxe7 {[%clk 0:04:37.2]} 20... Rxe7
{[%clk 0:03:55.7]} 21. Re1 {[%clk 0:04:38.8]} 21... b6 {[%clk 0:02:55.5]} 22.
Rxe4 {[%clk 0:04:37.2]} 22... Bd7 {[%clk 0:02:50.6]} 23. Rbe1 {[%clk 0:03:26.3]}
23... Rae8 {[%clk 0:02:37.7]} 24. Re5 {[%clk 0:03:21.7]} 24... Kf7 {[%clk
0:02:31.2]} 25. f4 {[%clk 0:03:22.6]} 25... Kf6 {[%clk 0:02:28.9]} 26. g4 {[%clk
0:03:21.4]} 26... h6 {[%clk 0:02:25.9]} 27. h4 {[%clk 0:03:22.4]} 27... g5
{[%clk 0:01:39.3]} 28. hxg5+ {[%clk 0:03:22.3]} 28... hxg5 {[%clk 0:01:39.4]}
29. fxg5+ {[%clk 0:02:32.1]} 29... Kg7 {[%clk 0:00:48.3]} 30. Kg2 {[%clk
0:02:32.8]} 30... c5 {[%clk 0:00:37.1]} 31. d5 {[%clk 0:01:48.4]} 31... b5
{[%clk 0:00:37.3]} 32. Bd3 {[%clk 0:00:58.1]} 32... c4 {[%clk 0:00:37.4]} 33.
Bc2 {[%clk 0:00:58.9]} 33... Bc8 {[%clk 0:00:36.5]} 34. Kg3 {[%clk 0:00:57.2]}
34... Rd8 {[%clk 0:00:34.3]} 35. Rh1 {[%clk 0:00:46.3]} 35... Bb7 {[%clk
0:00:24.7]} 36. Rh7+ {[%clk 0:00:43.9]} 36... Kf8 {[%clk 0:00:22.8]} 37. Rh8+
{[%clk 0:00:45.2]} 1-0

[Event "GrandPrix_30.05"]
[Site "Chess.com"]
[Date "2020.05.30"]
[Round "5"]
[White "LorisinoC"]
[Black "Saxar85"]
[Result "0-1"]
[WhiteElo "2151"]
[BlackElo "2428"]
[TimeControl "600+2"]
[EndTime "10:25:56 PDT"]
[Termination "Saxar85 won by checkmate"]

1. e4 {[%clk 0:10:01.9]} 1... d6 {[%clk 0:09:51.9]} 2. d4 {[%clk 0:09:57.7]}
2... g6 {[%clk 0:09:52.4]} 3. Nf3 {[%clk 0:09:52.1]} 3... Bg7 {[%clk 0:09:52.3]}
4. c3 {[%clk 0:09:52.1]} 4... Nf6 {[%clk 0:09:52.7]} 5. Bd3 {[%clk 0:09:49]}
5... O-O {[%clk 0:09:53.2]} 6. O-O {[%clk 0:09:45.3]} 6... Nc6 {[%clk
0:09:53.5]} 7. Re1 {[%clk 0:09:45.1]} 7... e5 {[%clk 0:09:53.5]} 8. h3 {[%clk
0:09:29.7]} 8... Re8 {[%clk 0:09:46.9]} 9. Bg5 {[%clk 0:09:14.8]} 9... h6 {[%clk
0:09:37.1]} 10. Bh4 {[%clk 0:09:15.1]} 10... g5 {[%clk 0:09:26.5]} 11. Bg3
{[%clk 0:09:15.5]} 11... Nh5 {[%clk 0:09:24.1]} 12. Bh2 {[%clk 0:08:42.1]} 12...
Nf4 {[%clk 0:09:13.2]} 13. Bxf4 {[%clk 0:08:39.8]} 13... gxf4 {[%clk 0:09:12.3]}
14. Bc4 {[%clk 0:08:17.9]} 14... Qf6 {[%clk 0:08:38.6]} 15. dxe5 {[%clk
0:08:03]} 15... dxe5 {[%clk 0:08:09.1]} 16. Kh2 {[%clk 0:07:31.9]} 16... Nd8
{[%clk 0:07:24.9]} 17. Nbd2 {[%clk 0:06:56.5]} 17... Ne6 {[%clk 0:07:23.1]} 18.
Qa4 {[%clk 0:06:38.3]} 18... c6 {[%clk 0:07:18.6]} 19. Qb3 {[%clk 0:06:31.6]}
19... Bf8 {[%clk 0:06:56]} 20. Rg1 {[%clk 0:06:03.4]} 20... Bc5 {[%clk
0:06:51.7]} 21. Raf1 {[%clk 0:05:43.9]} 21... Kh8 {[%clk 0:06:50.9]} 22. Qc2
{[%clk 0:05:25.2]} 22... a5 {[%clk 0:06:30.8]} 23. Nb3 {[%clk 0:04:08.5]} 23...
Bb6 {[%clk 0:06:26.1]} 24. Nc1 {[%clk 0:04:09.1]} 24... Ng5 {[%clk 0:06:02.6]}
25. Qe2 {[%clk 0:03:49.5]} 25... Qg6 {[%clk 0:06:01.6]} 26. Nd3 {[%clk
0:03:42.7]} 26... Bc7 {[%clk 0:04:56.3]} 27. Nh4 {[%clk 0:03:11.2]} 27... Qf6
{[%clk 0:03:57.9]} 28. Qh5 {[%clk 0:03:01.8]} 28... b5 {[%clk 0:03:32.6]} 29.
Bb3 {[%clk 0:02:52]} 29... a4 {[%clk 0:03:32.7]} 30. Bd1 {[%clk 0:02:52.3]}
30... Nxe4 {[%clk 0:03:14.4]} 31. Bg4 {[%clk 0:02:25.3]} 31... Bxg4 {[%clk
0:03:00.2]} 32. hxg4 {[%clk 0:02:19.3]} 32... Ng5 {[%clk 0:02:14]} 33. Nf5
{[%clk 0:02:05.9]} 33... Kh7 {[%clk 0:02:14.4]} 34. Rh1 {[%clk 0:01:31]} 34...
Bb6 {[%clk 0:01:21.3]} 35. g3 {[%clk 0:01:18.4]} 35... f3 {[%clk 0:01:15.4]} 36.
Kg1 {[%clk 0:01:07.5]} 36... Re6 {[%clk 0:01:15.7]} 37. Re1 {[%clk 0:01:00.5]}
37... Rd8 {[%clk 0:01:02.6]} 38. Nxe5 {[%clk 0:01:00.2]} 38... Rd2 {[%clk
0:00:59.4]} 39. Nxh6 {[%clk 0:00:43.7]} 39... Bxf2+ {[%clk 0:00:45]} 40. Kf1
{[%clk 0:00:39.1]} 40... Qxh6 {[%clk 0:00:45.6]} 41. Qxg5 {[%clk 0:00:38.5]}
41... Qxh1# {[%clk 0:00:45.5]} 0-1

[Event "GrandPrix_30.05"]
[Site "Chess.com"]
[Date "2020.05.30"]
[Round "5"]
[White "LiamVrolijk"]
[Black "troisi"]
[Result "1-0"]
[WhiteElo "2387"]
[BlackElo "1707"]
[TimeControl "600+2"]
[EndTime "10:25:58 PDT"]
[Termination "LiamVrolijk won by resignation"]

1. d4 {[%clk 0:10:01.9]} 1... Nf6 {[%clk 0:09:52.7]} 2. c4 {[%clk 0:10:02.9]}
2... e6 {[%clk 0:09:50.9]} 3. Nf3 {[%clk 0:10:03]} 3... d5 {[%clk 0:09:51.4]} 4.
g3 {[%clk 0:10:03.7]} 4... c6 {[%clk 0:09:04.7]} 5. Bg2 {[%clk 0:10:02]} 5...
Bd6 {[%clk 0:09:05.9]} 6. O-O {[%clk 0:09:59.5]} 6... Nbd7 {[%clk 0:09:07]} 7.
Nfd2 {[%clk 0:09:59.2]} 7... O-O {[%clk 0:09:05.9]} 8. Nc3 {[%clk 0:09:57.6]}
8... Re8 {[%clk 0:09:04.4]} 9. e4 {[%clk 0:09:58]} 9... dxe4 {[%clk 0:09:04.9]}
10. Ndxe4 {[%clk 0:09:59.9]} 10... Bf8 {[%clk 0:08:13]} 11. Bf4 {[%clk
0:09:39.2]} 11... Nxe4 {[%clk 0:06:51.1]} 12. Bxe4 {[%clk 0:09:34.8]} 12... Nf6
{[%clk 0:06:43.8]} 13. Bg2 {[%clk 0:09:34]} 13... Bd6 {[%clk 0:06:21.8]} 14. Be5
{[%clk 0:09:25.3]} 14... Qc7 {[%clk 0:06:08.8]} 15. Re1 {[%clk 0:09:22.5]} 15...
Nd7 {[%clk 0:06:04.5]} 16. Bxd6 {[%clk 0:09:19.9]} 16... Qxd6 {[%clk 0:06:06.4]}
17. c5 {[%clk 0:09:21.8]} 17... Qc7 {[%clk 0:06:02.5]} 18. Ne4 {[%clk 0:08:59]}
18... Rd8 {[%clk 0:05:51.7]} 19. Qb3 {[%clk 0:08:23.9]} 19... b6 {[%clk
0:05:04.2]} 20. Rac1 {[%clk 0:07:41.2]} 20... Rb8 {[%clk 0:04:55.3]} 21. Qc3
{[%clk 0:07:39.6]} 21... Ba6 {[%clk 0:04:35.2]} 22. b4 {[%clk 0:06:48.4]} 22...
Bb5 {[%clk 0:03:54]} 23. Nd6 {[%clk 0:06:41.2]} 23... Nf6 {[%clk 0:03:21.1]} 24.
Red1 {[%clk 0:06:25.5]} 24... Ne8 {[%clk 0:03:04]} 25. Ne4 {[%clk 0:06:11.2]}
25... a5 {[%clk 0:02:50.1]} 26. cxb6 {[%clk 0:04:48.4]} 26... Rxb6 {[%clk
0:02:48.3]} 27. bxa5 {[%clk 0:04:49.5]} 27... Ra6 {[%clk 0:02:48.6]} 28. Nc5
{[%clk 0:04:42.8]} 28... Rxa5 {[%clk 0:02:45.1]} 29. Nb7 {[%clk 0:04:42.1]}
29... Ra4 {[%clk 0:00:54]} 30. Nxd8 {[%clk 0:04:40.5]} 30... Qxd8 {[%clk
0:00:55.9]} 31. Bf1 {[%clk 0:03:02.8]} 31... Rxa2 {[%clk 0:00:46.7]} 32. Bxb5
{[%clk 0:02:59.3]} 32... cxb5 {[%clk 0:00:48.6]} 33. Qb3 {[%clk 0:02:52.1]}
33... Ra5 {[%clk 0:00:39.2]} 34. d5 {[%clk 0:02:53.3]} 34... exd5 {[%clk
0:00:20.4]} 35. Rxd5 {[%clk 0:02:55.2]} 35... Qe7 {[%clk 0:00:21.4]} 36. Rxb5
{[%clk 0:02:52.4]} 36... Rxb5 {[%clk 0:00:21.9]} 37. Qxb5 {[%clk 0:02:54.3]}
37... Kf8 {[%clk 0:00:23.4]} 38. h4 {[%clk 0:02:51.6]} 38... h6 {[%clk 0:00:24]}
39. Qc5 {[%clk 0:02:48.6]} 39... Qxc5 {[%clk 0:00:23.3]} 40. Rxc5 {[%clk
0:02:50.5]} 40... Ke7 {[%clk 0:00:24.9]} 41. Kg2 {[%clk 0:02:50.9]} 41... Nd6
{[%clk 0:00:26.8]} 42. Kf3 {[%clk 0:02:50.5]} 42... Ke6 {[%clk 0:00:28.3]} 43.
Rc7 {[%clk 0:02:47.5]} 43... g6 {[%clk 0:00:29.2]} 44. g4 {[%clk 0:02:42.7]}
44... Ne8 {[%clk 0:00:28.4]} 45. Rc6+ {[%clk 0:02:41.7]} 45... Kd5 {[%clk
0:00:27.1]} 46. Ra6 {[%clk 0:02:39.1]} 46... Ng7 {[%clk 0:00:25.8]} 47. Rf6
{[%clk 0:02:37]} 47... g5 {[%clk 0:00:21.1]} 48. h5 {[%clk 0:02:31.1]} 48... Ke5
{[%clk 0:00:20.1]} 49. Rxh6 {[%clk 0:02:29.2]} 49... Ne6 {[%clk 0:00:20.1]} 50.
Rxe6+ {[%clk 0:01:53.6]} 50... Kxe6 {[%clk 0:00:19.9]} 51. Ke4 {[%clk
0:01:55.1]} 51... Kf6 {[%clk 0:00:21.1]} 52. Kd5 {[%clk 0:01:54.9]} 52... Kg7
{[%clk 0:00:20.6]} 53. Ke5 {[%clk 0:01:56.2]} 53... Kh6 {[%clk 0:00:21.5]} 54.
Kf6 {[%clk 0:01:56.6]} 54... Kh7 {[%clk 0:00:23.4]} 1-0

[Event "GrandPrix_30.05"]
[Site "Chess.com"]
[Date "2020.05.30"]
[Round "5"]
[White "ploky25"]
[Black "KacperKacprzak"]
[Result "1-0"]
[WhiteElo "2263"]
[BlackElo "2071"]
[TimeControl "600+2"]
[EndTime "10:25:58 PDT"]
[Termination "ploky25 won by resignation"]

1. d4 {[%clk 0:10:00.6]} 1... Nf6 {[%clk 0:09:48.3]} 2. c4 {[%clk 0:10:00.3]}
2... d6 {[%clk 0:09:47.9]} 3. Nc3 {[%clk 0:09:58]} 3... Nbd7 {[%clk 0:09:47.1]}
4. e4 {[%clk 0:09:57.3]} 4... g6 {[%clk 0:09:48.2]} 5. Nf3 {[%clk 0:09:49.1]}
5... e5 {[%clk 0:09:48.9]} 6. Be2 {[%clk 0:09:41]} 6... Bg7 {[%clk 0:09:48.7]}
7. O-O {[%clk 0:09:40]} 7... O-O {[%clk 0:09:48.7]} 8. Re1 {[%clk 0:09:34]} 8...
Re8 {[%clk 0:09:46.7]} 9. d5 {[%clk 0:09:31.8]} 9... Nc5 {[%clk 0:09:46.4]} 10.
Bf1 {[%clk 0:09:27.5]} 10... a5 {[%clk 0:09:47.3]} 11. b3 {[%clk 0:09:18.3]}
11... c6 {[%clk 0:09:48]} 12. Rb1 {[%clk 0:08:37.3]} 12... cxd5 {[%clk
0:09:46.1]} 13. cxd5 {[%clk 0:08:35.9]} 13... Bd7 {[%clk 0:09:46.7]} 14. Nd2
{[%clk 0:08:29.1]} 14... Qb8 {[%clk 0:09:39.3]} 15. Bb5 {[%clk 0:08:19.9]} 15...
Rc8 {[%clk 0:08:59]} 16. Bxd7 {[%clk 0:07:21.7]} 16... Nfxd7 {[%clk 0:08:41.9]}
17. Qe2 {[%clk 0:06:58.8]} 17... Ra6 {[%clk 0:08:31]} 18. Nb5 {[%clk 0:06:46.9]}
18... Rb6 {[%clk 0:08:02]} 19. a4 {[%clk 0:06:45.2]} 19... f5 {[%clk 0:07:43.6]}
20. exf5 {[%clk 0:06:19.6]} 20... gxf5 {[%clk 0:07:45.5]} 21. Nc4 {[%clk
0:06:16.5]} 21... Ra6 {[%clk 0:07:42]} 22. Bd2 {[%clk 0:06:02.4]} 22... Nf6
{[%clk 0:07:33.1]} 23. Bxa5 {[%clk 0:05:43]} 23... Nxd5 {[%clk 0:07:22.2]} 24.
Qd2 {[%clk 0:05:33.2]} 24... Nf6 {[%clk 0:06:26.8]} 25. Nbxd6 {[%clk 0:05:13.4]}
25... Nce4 {[%clk 0:06:22.2]} 26. Nxe4 {[%clk 0:05:04.7]} 26... Nxe4 {[%clk
0:06:21.8]} 27. Qd5+ {[%clk 0:05:02.7]} 27... Kh8 {[%clk 0:06:18.1]} 28. Rbd1
{[%clk 0:04:56.6]} 28... Qa7 {[%clk 0:05:50.7]} 29. Re3 {[%clk 0:04:24.9]} 29...
Nxf2 {[%clk 0:05:13.8]} 30. Nxe5 {[%clk 0:03:50.5]} 30... Rf6 {[%clk 0:04:13.2]}
31. Rd4 {[%clk 0:02:43.5]} 31... f4 {[%clk 0:03:46.9]} 32. Rc3 {[%clk
0:02:33.1]} 32... Rxc3 {[%clk 0:02:03.2]} 33. Bxc3 {[%clk 0:02:26.6]} 33... Nd1
{[%clk 0:01:49.8]} 34. Qa5 {[%clk 0:01:39.9]} 34... Qxa5 {[%clk 0:01:04.8]} 35.
Bxa5 {[%clk 0:01:40]} 35... Ne3 {[%clk 0:01:05.9]} 36. Rd8+ {[%clk 0:01:23.7]}
36... Rf8 {[%clk 0:01:04.8]} 37. Rxf8+ {[%clk 0:01:24.1]} 37... Bxf8 {[%clk
0:01:06.7]} 38. Bb6 {[%clk 0:01:23.4]} 38... Nd5 {[%clk 0:01:04.2]} 39. Bd4
{[%clk 0:01:22.8]} 39... Kg8 {[%clk 0:01:04.4]} 40. Kf2 {[%clk 0:01:20.6]} 40...
Bb4 {[%clk 0:00:38.8]} 41. Kf3 {[%clk 0:01:19]} 41... Bd2 {[%clk 0:00:38.2]} 42.
Nd3 {[%clk 0:01:16.5]} 42... Kf7 {[%clk 0:00:35.9]} 43. Ke4 {[%clk 0:01:14.9]}
43... Nf6+ {[%clk 0:00:30.2]} 44. Bxf6 {[%clk 0:01:14.9]} 44... Kxf6 {[%clk
0:00:32.1]} 45. Nxf4 {[%clk 0:01:15.9]} 45... b6 {[%clk 0:00:34]} 46. Nd5+
{[%clk 0:01:16.3]} 46... Ke6 {[%clk 0:00:35]} 47. Nxb6 {[%clk 0:01:17]} 47...
Kd6 {[%clk 0:00:36.9]} 48. Nc4+ {[%clk 0:01:17.6]} 1-0